Cogmind - Beta 11.1 @@@ ROGUE MODE // 2022.10.06 @ 13:28:33 Player: Triffids Result: Self-destructed Performance ------------- Evolutions (2) 1000 Regions Visited (5) 1000 Robots Destroyed (7) 35 Value Destroyed (161) 161 Prototype IDs (25) 500 Alien Tech Used (0) 0 Bonus (335) 335 TOTAL SCORE: 3031 Bonus ------- Follower Combat Kills 35 Aligned with FarCom 300 Cogmind --------- Core Integrity 537/550 Matter 181/300 Energy 237/250 System Corruption 0% Temperature Cool (0) Movement Walking (120) Location -8/Materials Parts ------- > --- POWER (1) -------- Ion Engine > --- PROPULSION (4) --- Aluminum Leg Aluminum Leg Aluminum Leg Aluminum Leg > --- UTILITY (3) ------ Improved Heat Sink Medium Storage Unit Hacking Suite > --- WEAPON (3) ------- Small Laser Guided Plasma Cannon Improved Assault Rifle > --- INVENTORY (10) --- Ion Engine Aluminum Leg Aluminum Leg Heat Sink Advanced Visual Processing Unit Experimental Sensor Array Splice Drone Bay (6/6) Light Assault Rifle Light Assault Rifle Rocket Launcher Peak State ------------ > --- POWER ------------ Ion Engine > --- PROPULSION ------- Aluminum Leg Aluminum Leg Aluminum Leg Aluminum Leg > --- UTILITY ---------- Improved Heat Sink Medium Storage Unit Hacking Suite > --- WEAPON ----------- Small Laser Guided Plasma Cannon Improved Assault Rifle > --- INVENTORY -------- Ion Engine Aluminum Leg Aluminum Leg Heat Sink Advanced Visual Processing Unit Experimental Sensor Array Splice Drone Bay Light Assault Rifle Light Assault Rifle Rocket Launcher [Rating: 26] Favorites ----------- Power Ion Engine Engine Ion Engine Propulsion Aluminum Leg Leg Aluminum Leg Utility Medium Storage Unit Device Heat Sink Storage Medium Storage Unit Hackware Hacking Suite Weapon Small Laser Energy Gun Small Laser Energy Cannon Guided Plasma Cannon Ballistic Gun Light Assault Rifle Build | -11 -10 -10 -10 -9 -8 ------- Run | Scr Mat Min Exi Min Mat Slots Evolved 4 | . . . . . 4 Power . | . . . . . . Propulsion 2 | . . . . . 2 Utility 1 | . . . . . 1 Weapon 1 | . . . . . 1 Parts Attached 19 | 6 2 . . 3 8 Power 1 | 1 . . . . . Engine 1 | 1 . . . . . Core . | . . . . . . Reactor . | . . . . . . Propulsion 5 | 2 . . . . 3 Treads . | . . . . . . Leg 5 | 2 . . . . 3 Wheel . | . . . . . . Hover . | . . . . . . Flight . | . . . . . . Utility 8 | 1 2 . . 3 2 Device 5 | . 1 . . 3 1 Storage 2 | 1 1 . . . . Processor . | . . . . . . Hackware 1 | . . . . . 1 Protection . | . . . . . . Artifact . | . . . . . . Weapon 5 | 2 . . . . 3 Energy Gun 1 | 1 . . . . . Energy Cannon 2 | . . . . . 2 Ballistic Gun 2 | 1 . . . . 1 Ballistic Cannon . | . . . . . . Launcher . | . . . . . . Special Weapon . | . . . . . . Impact Weapon . | . . . . . . Slashing Weapon . | . . . . . . Piercing Weapon . | . . . . . . Special Melee Weapon . | . . . . . . Unidentified Prototypes 2 | . . . . 1 1 Parts Lost . | . . . . . . Power . | . . . . . . Propulsion . | . . . . . . Utility . | . . . . . . Weapon . | . . . . . . Highest Loss Streak . | . . . . . . To Critical Strikes . | . . . . . . Average Slot Usage (%) 99 | . 96 100 100 99 100 Engine 13 | . 14 14 14 14 9 Leg 28 | . 28 28 28 28 36 Device 12 | . 11 14 14 13 9 Storage 13 | . 14 14 14 14 9 Energy Gun 13 | . 14 14 14 14 9 Ballistic Gun 13 | . 14 14 14 14 10 Naked Turns . | . . . . . . Heaviest Build 30 | 12 18 18 18 25 30 Greatest Support 40 | 20 20 20 20 20 40 Greatest Overweight (x) 1 | 1 . . . 1 . Average Overweight (x) . | . . . . . . Largest Inventory Capacity 10 | 8 10 10 10 10 10 Average Capacity 9 | 7 9 10 10 10 10 Most Carried 10 | 5 8 10 10 10 10 Average Carried 8 | 2 6 8 9 9 7 Final Capacity 10 | 8 10 10 10 10 10 Final Carried 10 | 2 8 10 10 10 10 Class Distribution -------------------- 93% | Mutant 6% | Scavenger-Mutant Dominant Class ---------------- Mutant | -10/Materials Mutant | -10/Mines Mutant | -10/Exiles Mutant | -9/Mines Scavenger-Mutant | -8/Materials Resources | -11 -10 -10 -10 -9 -8 ----------- Run | Scr Mat Min Exi Min Mat Matter Collected 311 | 137 112 . 62 . . Remotely . | . . . . . . Salvage Created 167 | . 122 . . . 45 Parts 17 | . 14 . . . 3 Haulers Intercepted . | . . . . . . Recyclers Shooed . | . . . . . . Parts Field Recycled . | . . . . . . Retrieved Matter . | . . . . . . Parts Self-Destructed . | . . . . . . Prevented . | . . . . . . Kills | -11 -10 -10 -10 -9 -8 ------- Run | Scr Mat Min Exi Min Mat Combat Hostiles Destroyed 6 | . 5 . . . 1 Guns 5 | . 5 . . . . Cannons 1 | . . . . . 1 Classes Destroyed 3 | . 3 . . . . Operator 1 | . 1 . . . . Swarmer 3 | . 3 . . . . Grunt 3 | . 2 . . . 1 Best Kill Streak 2 | . 2 . . . 1 Combat Bots Only 2 | . 2 . . . 1 Max Kills in Single Turn 1 | . 1 . . . 1 Gunslinging . | . . . . . . Exploded . | . . . . . . Melee . | . . . . . . Uniques/NPCs Destroyed . | . . . . . . Combat | -11 -10 -10 -10 -9 -8 -------- Run | Scr Mat Min Exi Min Mat Damage Taken 177 | . 164 . . . 13 Core 33 | . 20 . . . 13 Absorbed by Shields . | . . . . . . Core Remaining (%) 96 | 100 . . . 92 . Volleys Fired 38 | . 31 . . . 7 Largest 2 | . 2 . . . 2 Hottest 120 | . 60 . . . 120 Shots Fired 70 | . 60 . . . 10 Gun 66 | . 60 . . . 6 Cannon 4 | . . . . . 4 Launcher . | . . . . . . Special . | . . . . . . Kinetic 34 | . 31 . . . 3 Thermal 36 | . 29 . . . 7 Explosive . | . . . . . . Electromagnetic . | . . . . . . Robot Hit Streak 4 | . 4 . . . 3 Robot Miss Streak 7 | . 7 . . . 2 Penetration Max . | . . . . . . Secondary Targets . | . . . . . . Shots Hit Robots 24 | . 20 . . . 4 Core Hits 15 | . 14 . . . 1 Critical Kills . | . . . . . . Critical Parts Destroyed . | . . . . . . Critical Strikes . | . . . . . . Melee Attacks . | . . . . . . Impact . | . . . . . . Slashing . | . . . . . . Piercing . | . . . . . . Sneak Attacks . | . . . . . . Combat Hostiles . | . . . . . . Follow-up Attacks . | . . . . . . Damage Inflicted 342 | . 189 . . . 153 Guns 231 | . 189 . . . 42 Cannons 111 | . . . . . 111 Explosions . | . . . . . . Melee . | . . . . . . Ramming . | . . . . . . Kinetic 130 | . 100 . . . 30 Thermal 212 | . 89 . . . 123 Explosive . | . . . . . . Electromagnetic . | . . . . . . Impact . | . . . . . . Slashing . | . . . . . . Piercing . | . . . . . . Highest Corruption . | . . . . . . Average Corruption . | . . . . . . Corruption Purged . | . . . . . . Corruption Blocked . | . . . . . . Overload Shots . | . . . . . . Overflow Damage . | . . . . . . Projectiles . | . . . . . . Explosions . | . . . . . . Melee . | . . . . . . Knockbacks . | . . . . . . Impact . | . . . . . . Kinetic . | . . . . . . Secondary . | . . . . . . Self-Inflicted Damage . | . . . . . . Shots . | . . . . . . Rammed . | . . . . . . Targets Rammed . | . . . . . . Kicked . | . . . . . . Crushed . | . . . . . . Highest Temperature 96 | . 32 . . . 96 Average Temperature 27 | . 14 . . . 42 Received Heat Transfer 39 | . 30 . . . 9 Siege Activations . | . . . . . . Robots Corrupted . | . . . . . . Combat Hostiles . | . . . . . . Parts Fried . | . . . . . . Impact Corruptions . | . . . . . . Robots Melted . | . . . . . . Combat Hostiles . | . . . . . . Parts Melted 1 | . 1 . . . . Heat Transferred 465 | . 200 . . . 265 Parts Sabotaged . | . . . . . . Parts Stolen . | . . . . . . Parts Stripped . | . . . . . . Power Chain Reactions . | . . . . . . Missiles Intercepted . | . . . . . . Alert | -11 -10 -10 -10 -9 -8 ------- Run | Scr Mat Min Exi Min Mat Peak Influence 260 | . 260 101 . . 54 Initial 101 | . . 101 . . . Average 51 | . 121 101 . . 13 Maximum Alert Level 1 | . 1 . . . . Low Security (%) 94 | 100 80 100 . 100 100 Level 1 5 | . 19 . . . . Level 2 . | . . . . . . Level 3 . | . . . . . . Level 4 . | . . . . . . Level 5 . | . . . . . . High Security . | . . . . . . Max Security . | . . . . . . Squads Dispatched 4 | . 2 . . . 2 Investigation 1 | . 1 . . . . Extermination . | . . . . . . Reinforcement 2 | . 1 . . . 1 Assault . | . . . . . . Garrison 1 | . . . . . 1 Intercept . | . . . . . . Searches Triggered . | . . . . . . Construction Impeded . | . . . . . . Haulers Reinforced . | . . . . . . Active Scanning Responses . | . . . . . . Cargo Convoy Interrupts . | . . . . . . Stealth | -11 -10 -10 -10 -9 -8 --------- Run | Scr Mat Min Exi Min Mat Distress Signals 3 | . 2 . . . 1 Communications Jammed . | . . . . . . Distress Signals . | . . . . . . Times Spotted 17 | . 13 . . . 4 Peak Tracking Total 3 | . 3 . . . 3 Tactical Retreats 2 | . 2 . . . . Traps | -11 -10 -10 -10 -9 -8 ------- Run | Scr Mat Min Exi Min Mat Traps Triggered 1 | . 1 . . . . Indirectly . | . . . . . . Trap Hack Attempts . | . . . . . . Triggered . | . . . . . . Disarmed . | . . . . . . Reprogrammed . | . . . . . . Reused . | . . . . . . Traps Extracted . | . . . . . . Installed . | . . . . . . Triggered . | . . . . . . Machines | -11 -10 -10 -10 -9 -8 ---------- Run | Scr Mat Min Exi Min Mat Machines Disabled . | . . . . . . Max in Single Turn . | . . . . . . Machines Sabotaged . | . . . . . . Garrisons Compromised . | . . . . . . Overloaded Fab Kills . | . . . . . . Hacking | -11 -10 -10 -10 -9 -8 --------- Run | Scr Mat Min Exi Min Mat Machines Accessed 3 | . . . 2 1 . Terminals . | . . . . . . Fabricators . | . . . . . . Repair Stations . | . . . . . . Recycling Units . | . . . . . . Scanalyzers . | . . . . . . Garrison Access . | . . . . . . Total Hacks 3 | . . . 2 1 . Successful 3 | . . . 2 1 . Failed . | . . . . . . Catastrophic . | . . . . . . Database Lockouts . | . . . . . . Manual 1 | . . . 1 . . Terminals . | . . . . . . Fabricators . | . . . . . . Repair Stations . | . . . . . . Recycling Units . | . . . . . . Scanalyzers . | . . . . . . Garrison Access . | . . . . . . Terminal Hacks 3 | . . . 2 1 . Record 1 | . . . 1 . . Open Door 1 | . . . . 1 . EX-Prototype ID Bank 1 | . . . 1 . . Fabricator Hacks . | . . . . . . Repair Station Hacks . | . . . . . . Recycling Unit Hacks . | . . . . . . Scanalyzer . | . . . . . . Garrison Access Hacks . | . . . . . . Unauthorized Hacks . | . . . . . . Terminals . | . . . . . . Fabricators . | . . . . . . Repair Stations . | . . . . . . Recycling Units . | . . . . . . Scanalyzers . | . . . . . . Garrison Access . | . . . . . . Data Cores Recovered . | . . . . . . Used . | . . . . . . Hacking Detections . | . . . . . . Full Trace Events . | . . . . . . Feedback Events . | . . . . . . Feedback Blocked . | . . . . . . Robot Schematics Acquired . | . . . . . . Robots Built . | . . . . . . Authchips . | . . . . . . Time . | . . . . . . Total Robot Build Rating . | . . . . . . Part Schematics Acquired . | . . . . . . Parts Built . | . . . . . . Authchips . | . . . . . . Time . | . . . . . . Total Part Build Rating . | . . . . . . Parts Repaired . | . . . . . . Time . | . . . . . . Parts Recycled . | . . . . . . Recycled Matter . | . . . . . . Retrieved Matter . | . . . . . . Retrieved Components . | . . . . . . Parts Scanalyzed . | . . . . . . Part Schematics Acquired . | . . . . . . Parts Damaged . | . . . . . . Bothacking | -11 -10 -10 -10 -9 -8 ------------ Run | Scr Mat Min Exi Min Mat Used RIF Installer . | . . . . . . Robots Hacked . | . . . . . . Non-combat . | . . . . . . Combat . | . . . . . . Robot Hacks Applied . | . . . . . . Relay Couplers Released . | . . . . . . Fabnet Peak Effective % . | . . . . . . Robots Rewired . | . . . . . . Allies Hacked . | . . . . . . Hacks Repelled . | . . . . . . Allies | -11 -10 -10 -10 -9 -8 -------- Run | Scr Mat Min Exi Min Mat Total Allies 5 | . . 2 . 3 . Largest Group 3 | . . 2 2 3 3 Highest-Rated Group 40 | . . 39 39 40 40 Highest-Rated Ally 31 | . . 31 31 16 16 Total Orders 1 | . . . . 1 . RETURN 1 | . . . . 1 . Ally Attacks 15 | . . . . . 15 Total Damage 218 | . . . . . 218 Kills 1 | . . . . . 1 Allies Corrupted . | . . . . . . Allies Melted . | . . . . . . Intel | -11 -10 -10 -10 -9 -8 ------- Run | Scr Mat Min Exi Min Mat Robot Analysis Total . | . . . . . . Derelict Logs Recovered 2 | . . 1 . 1 . Drone Launches 1 | . . . . 1 . Drone Recoveries 1 | . . . . 1 . Exploration | -11 -10 -10 -10 -9 -8 ------------- Run | Scr Mat Min Exi Min Mat Turns Passed 1494 | 55 290 211 380 459 99 Spaces Moved 1085 | 37 158 163 311 363 53 Core 17 | 17 . . . . . Treads . | . . . . . . Legs 1068 | 20 158 163 311 363 53 Wheels . | . . . . . . Hover . | . . . . . . Flight . | . . . . . . Fastest Speed 50 | 50 120 120 120 120 120 Average Speed 119 | 108 120 120 120 121 120 Slowest Speed 190 | 120 120 120 120 190 120 Overloaded Moves . | . . . . . . Propulsion Burnouts . | . . . . . . Robots Hopped . | . . . . . . Cave-ins Triggered . | . . . . . . Exploration Rate (%) 37 | 3 29 47 73 65 7 Regions Visited 5 Branch Regions 3 Pre-discovered Areas 1 | . . 1 . . . Known Exits Taken . | . . . . . . Unknown Exits Taken 5 | 1 1 1 1 1 . Scrap Searched . | . . . . . . Spaces Dug . | . . . . . . Terrain Destroyed 1 | . . . . . 1 Melee . | . . . . . . Projectile 1 | . . . . . 1 AOE . | . . . . . . Terrain Rammed . | . . . . . . Walls Destroyed . | . . . . . . Machines Disabled . | . . . . . . Actions | -11 -10 -10 -10 -9 -8 --------- Run | Scr Mat Min Exi Min Mat Total 1208 | 50 204 178 318 382 76 Wait 48 | 3 6 14 6 13 6 Move 1080 | 36 157 162 310 362 53 Hop . | . . . . . . Pick Up 17 | 5 6 2 1 1 2 Fast Attach 7 | 3 2 . . 2 . Attach 7 | 3 . . . . 4 Detach 1 | . 1 . . . . Swap 5 | . . . . 1 4 Drop 5 | . 1 . 1 3 . Fire 38 | . 31 . . . 7 Melee . | . . . . . . Ram . | . . . . . . Kick . | . . . . . . Crush . | . . . . . . Escape Stasis . | . . . . . . Rewire . | . . . . . . Trap . | . . . . . . Miscellaneous . | . . . . . . Route ------- -11/Scrapyard -10/Materials -10/Mines -10/Exiles (discovered 2 exits: *Min x2) -9/Mines -8/Materials (discovered 2 exits: Fac x2) History --------- Turn | Location | Event 13 | -11/Scrapyard | Discovered new exit (range 15) 56 | -11/Scrapyard | Entered Materials 310 | -10/Materials | Discovered new exit (range 11) 311 | -10/Materials | Build established: Mutant 346 | -10/Materials | Entered Mines 405 | -10/Mines | Learned location of Mines (-9) 428 | -10/Mines | Received a Rocket Launcher from a helpful Derelict 501 | -10/Mines | Found a damaged Exp. Sensor Array with a note attached 504 | -10/Mines | Found Prototype Device 541 | -10/Mines | Deemed a non-threat by the Exiles lab entrance 541 | -10/Mines | Discovered new exit (range 5) 557 | -10/Mines | Entered Exiles 557 | -10/Exiles | Accompanied by 2 allies 579 | -10/Exiles | Discovered new exit (range 14) 587 | -10/Exiles | Led the pair of lost Derelicts to a safe place 595 | -10/Exiles | Met 8R-AWN 616 | -10/Exiles | Met EX-HEX 650 | -10/Exiles | Met EX-BIN 664 | -10/Exiles | Aligned with FarCom system 665 | -10/Exiles | Given EX-Vault access code 695 | -10/Exiles | Opened EX-Vault 702 | -10/Exiles | Found Gui. Plasma Cannon 750 | -10/Exiles | Warned to stay clear of 0b10 Research branches 825 | -10/Exiles | Met EX-DEC 925 | -10/Exiles | Discovered new exit (range 12) 937 | -10/Exiles | Left Exiles lab with Gui. Plasma Cannon 937 | -10/Exiles | Entered Mines 949 | -9/Mines | Found the Drone Emporium 957 | -9/Mines | Found Prototype Device 957 | -9/Mines | Identified Splice Drone Bay 1250 | -9/Mines | Assisted by bots powering up and referring to "LRC-V3" 1310 | -9/Mines | Learned location of 2 exits from Materials 1383 | -9/Mines | Discovered new exit (range 7) 1396 | -9/Mines | Entered Materials 1396 | -8/Materials | Accompanied by 3 allies 1396 | -8/Materials | Evolved 4 slots: Propulsion x2, Utility x1, Weapon x1 1397 | -8/Materials | Identified exit to Factory 1492 | -8/Materials | Garrison activated, responded to threat 1495 | -8/Materials | Self-destructed Last Messages --------------- 01433_ O-16 Technician: "IFF HANDSHAKE FAILED. SECURING TERMINAL." 01435_ O-16 Technician uses terminal to summon reinforcements. 01435_ ALERT: Hostiles spotted, dispatching reinforcements to Terminal M005. 01435_ O-16 Technician locks terminal. 01441_ Acquired Adv. Visual Processing Unit. 01463_ Mercenary 2a destroyed. 01466_ Trooper 2a destroyed. 01475_ Trooper 2b suffers critical hit (Burn). 01478_ G-47 Trooper heat damages Imp. Heat Sink. 01478_ R-06 Scavenger collects Ion Engine. 01478_ G-47 Trooper destroyed. 01480_ G-47 Trooper suffers critical hit (Burn). 01480_ G-47 Trooper destroyed. 01485_ U-05 Engineer builds a Door. 01487_ R-06 Scavenger collects Particle Gun. 01488_ R-06 Scavenger collects Aluminum Leg. 01492_ ALERT: Activating Garrison Access M001. 01494_ R-06 Scavenger collects Aluminum Leg. 01495_ U-05 Engineer lays Concrete. Map ----- +----------------------------------------------------+ | ?????????????????????????????????????????????????? | | ?????????????????????????????????????????????????? | | ?????????????????????????????????????????????????? | | ?????????????????????????#???????????????????????? | | ????????????????????????? ???????????????????????? | | ????????????????????????? ???????????????????????? | | ????????????????????????? ???????????????????????? | | ????????????????????????? ???????????????????????? | | ????????????????????????? ???????????????????????? | | ????????????????????????# #??????????????????????? | | ????????????????????????# #??????????????????????? | | ????????????????????????#%#??????????????????????? | | ????????????????????????#%#??????????????????????? | | ????????????????????????# #??????????????????????? | | ????????????????????????#%#??????????????????????? | | ??????????????########### ########???????????????? | | ??????????????# ## # ! #???????????????? | | ??????????????# """##r# ]#???????????????? | | ??????????????# = """##r/ """ #???????????????? | | ??????????????# """## # """ #???????????????? | | ??????????????# """## # """ #???????????????? | | ??????????????# """##u# #???????????????? | | ?????????+????# ## ############???????????? | | ?????????# ???# ## ## #???????????? | | ?????????# ??# ## ## T #???????????? | | ????###### #####+######@## #???????????? | | ??? # #???????????? | | ??? h o + """ |! #???????????? | | ??? # """ |! #???????????? | | ????#########+### ### #### """ |! #???????????? | | ????????????????# # #?# #???????????? | | ????????????????# # #?###########???????????? | | ????????????????# # u ##???????????????????????? | | ????????????????## # t??????????????????????????? | | ?????????????????# # ??????????????????????????? | | ?????????????????# ###??????????????????????????? | | ?????????????????# #????????????????????????????? | | ?????????????????# #????????????????????????????? | | ?????????????????# #????????????????????????????? | | ?????????????????? ????????????????????????????? | | ?????????????????? ????????????????????????????? | | ??????????????????###????????????????????????????? | | ?????????????????????????????????????????????????? | | ?????????????????????????????????????????????????? | | ?????????????????????????????????????????????????? | | | | | | | | | | | +----------------------------------------------------+ Best States ------------- Heat Dissipation 45 Energy Generation 10 Energy Capacity 250 Matter Stores 300 Matter Capacity 300 Sight Range 16 Terrain Scan Density 10 Evasion (%) 55 Offensive Hacking 10 Item Schematics ----------------- None Robot Schematics ------------------ None Fabricated ------------ Nothing Alien Tech Used ----------------- None Achievements -------------- None Challenges ------------ None Game ------ Seed ReactiveSpacefoldPit Manual? 0 Play Time 00:26:15 Cumulative 161.9 hours Start 2022.10.05 @ 21:57:48 End 2022.10.06 @ 13:28:33 Sessions 3 Manual Loads 0 Difficulty Rogue Special Mode None Game No. 221 Rogue 221 Adventurer 0 Explorer 0 Win Type - Total 0 Types 0/0/0/0/0/0/0/0/0 Lore% 45 Gallery% 52 Achievement% 34 Wizard Run 0 Options --------- ASCII 0 Keyboard 1 Movement Vi Keybinds 0 Fullscreen 0 Font 20/SmallcapsGlow Map View 76x50 Tactical HUD 1 Map Filters NONE Filters NONE Steam 1 RUN: bfd85bff-ab19-42bf-878e-3503d8991a97